fUST/lending_fUST_20250630
["ID","MTS","AMOUNT","RATE_DAILY","PERIOD"]
[368659731,1751271041112,-460.0,0.00019015,2]
[368659733,1751271041122,-460.0,0.00019015,2]
[368659735,1751271041130,-460.0,0.00019015,2]
[368659737,1751271041139,-1898.37,0.00019016,2]
[368659739,1751271041149,-524.75,0.00019016,2]
[368659741,1751271041158,-519.33,0.00019016,2]
[368659743,1751271041168,-787.09,0.00019016,2]
[368659745,1751271041177,-604.86,0.00019016,2]
[368659747,1751271041186,-460.0,0.00019016,2]
[368659749,1751271041195,-1068.38,0.00019016,2]
[368659751,1751271041204,-460.0,0.00019016,2]
[368659753,1751271041214,-761.17,0.00019016,2]
[368659755,1751271041223,-460.0,0.00019017,2]
[368659757,1751271041233,-620.1,0.00019017,2]
[368659759,1751271041242,-890.64427428,0.00019055,2]
[368659761,1751271041252,-4813.87885942,0.00019072,2]
[368659763,1751271041261,-317.0,0.00019094,2]
[368659765,1751271041270,-159.319357,0.000191,2]
[368659767,1751271041280,-318.5133496,0.000191,2]
[368659769,1751271041289,-159.319357,0.000191,2]
[368659771,1751271041299,-318.638714,0.000191,2]
[368659773,1751271041309,-159.319357,0.000191,2]
[368659775,1751271041320,-156.0123712,0.000191,2]
[368659777,1751271041330,-923.59811243,0.0001911,2]
[368659779,1751271041339,-847.41730813,0.00019124,2]
[368659781,1751271041349,-160.0,0.00019124,2]
[368659783,1751271041358,-12569.13231816,0.00019124,2]
[368659785,1751271041370,-160.0,0.00019124,2]
[368659787,1751271041379,-230.31346914,0.00019124,2]
[368659789,1751271041388,-160.0,0.00019124,2]
[368659791,1751271041399,-213.84631524,0.00019124,2]
[368659793,1751271041411,-160.0,0.00019124,2]
[368659795,1751271041420,-524.55407094,0.00019124,2]
[368659797,1751271041430,-213.84631524,0.00019126,2]
[368659799,1751271041441,-160.0,0.00019126,2]
[368659801,1751271041451,-160.0,0.00019126,2]
[368659803,1751271041460,-160.0,0.00019126,2]
[368659805,1751271041469,-160.0,0.00019126,2]
[368659807,1751271041479,-837.16779106,0.00019126,2]
[368659809,1751271041488,-847.41730813,0.00019126,2]
[368659811,1751271041498,-214.99848635,0.00019126,2]
[368659813,1751271041508,-160.0,0.00019126,2]
[368659815,1751271041517,-160.0,0.00019126,2]
[368659817,1751271041527,-230.31346914,0.00019126,2]
[368659819,1751271041536,-17225.12927895,0.00019127,2]
[368659821,1751271041546,-160.0,0.00019148,2]
[368659823,1751271041556,-160.0,0.00019148,2]
[368659825,1751271041565,-500.0,0.00019164,2]
[368659827,1751271041574,-296.22026486,0.00019165,2]
[368659829,1751271041583,-500.0,0.00019178,2]
[368659831,1751271041593,-234.47094767,0.00019178,2]
[368659833,1751271041602,-198.87859106,0.00019178,2]
[368659835,1751271041611,-151.0,0.00019178,2]
[368659837,1751271041621,-273.3843016,0.00019178,2]
[368659839,1751271041630,-639.991473,0.00019178,2]
[368659841,1751271041639,-537.38253074,0.0001919,2]
[368659843,1751271041648,-500.0,0.0001919,2]
[368659845,1751271041658,-500.0,0.0001919,2]
[368659847,1751271041667,-500.0,0.0001919,2]
[368659849,1751271041677,-500.0,0.0001919,2]
[368659851,1751271041686,-500.0,0.0001919,2]
[368659853,1751271041696,-500.0,0.0001919,2]
[368659855,1751271041705,-358.40318792,0.0001919,2]
[368659857,1751271041715,-500.0,0.0001919,2]
[368659859,1751271041724,-500.0,0.0001919,2]
[368659860,1751271041733,-500.0,0.0001919,2]
[368659861,1751271041743,-500.0,0.0001919,2]
[368659862,1751271041752,-500.0,0.0001919,2]
[368659863,1751271041761,-500.0,0.0001919,2]
[368659864,1751271041770,-72026.73654694,0.00019191,2]
[368659865,1751271041779,-134758.82499714,0.00019191,2]
[368659866,1751271041788,-21075.52882855,0.00019191,2]
[368659867,1751271041798,-151.25262251,0.00019205,2]
[368659868,1751271041808,-446.0,0.00019214,2]
[368659870,1751271041817,-5000.0,0.00019218,2]
[368659872,1751271041826,-151.0,0.00019225,2]
[368659874,1751271041836,-459608.43627,0.00019226,2]
[368659876,1751271041844,-151.0,0.00019226,2]
[368659878,1751271041854,-326.750667,0.00019226,2]
[368659880,1751271041863,-151.0,0.00019226,2]
[368659896,1751271041872,-326.750667,0.00019226,2]
[368659898,1751271042003,-151.0,0.00019226,2]
[368659900,1751271042012,-151.0,0.00019226,2]
[368659902,1751271042022,-151.0,0.00019226,2]
[368659904,1751271042032,-151.0,0.00019226,2]
[368659906,1751271042041,-151.0,0.00019226,2]
[368659908,1751271042050,-151.0,0.00019226,2]
[368659910,1751271042059,-151.0,0.00019228,2]
[368659912,1751271042069,-151.902895,0.00019228,2]
[368659913,1751271042078,-151.0,0.00019228,2]
[368659914,1751271042087,-151.0,0.00019228,2]
[368659916,1751271042097,-152.30005,0.00019228,2]
[368659918,1751271042106,-151.0,0.00019228,2]
[368659920,1751271042116,-270.267716,0.00019228,2]
[368659922,1751271042127,-151.0,0.00019228,2]
[368659923,1751271042137,-151.0,0.00019228,2]
[368659924,1751271042147,-151.0,0.00019228,2]
[368659925,1751271042157,-251.066794,0.00019228,2]
[368659926,1751271042167,-251.066794,0.00019228,2]
[368659928,1751271042178,-151.585958,0.00019228,2]
[368659930,1751271042187,-151.585958,0.00019228,2]
[368659932,1751271042197,-151.0,0.00019228,2]
[368659934,1751271042207,-151.0,0.00019228,2]
[368659936,1751271042216,-151.0,0.00019228,2]
[368659938,1751271042226,-151.0,0.00019228,2]
[368659940,1751271042236,-4813.87885942,0.00019245,2]
[368659942,1751271042246,-500.61449702,0.00019273,2]
[368659944,1751271042256,-500.0,0.00019273,2]
[368659946,1751271042266,-500.0,0.00019273,2]
[368659948,1751271042275,-500.0,0.00019273,2]
[368659950,1751271042285,-500.0,0.00019273,2]
[368659952,1751271042295,-500.0,0.00019273,2]
[368659954,1751271042304,-500.0,0.00019273,2]
[368659956,1751271042314,-500.0,0.00019273,2]
[368659958,1751271042324,-160.0,0.0001928,3]
[368659960,1751271042333,-460.0,0.00019288,2]
[368659962,1751271042343,-672.44,0.00019288,2]
[368659964,1751271042353,-460.0,0.00019289,2]
[368659966,1751271042363,-460.0,0.00019289,2]
[368659968,1751271042375,-4160.94,0.00019289,2]
[368659970,1751271042385,-460.0,0.00019289,2]
[368659972,1751271042394,-910.77,0.00019289,2]
[368659974,1751271042404,-1073.09,0.00019289,2]
[368659976,1751271042414,-460.0,0.00019289,2]
[368659978,1751271042423,-1134.74,0.00019289,2]
[368659981,1751271042434,-1048.56,0.00019289,2]
[368659982,1751271042444,-2018.03,0.00019289,2]
[368659985,1751271042453,-1368.35,0.00019289,2]
[368659987,1751271042462,-516.68,0.00019289,2]
[368659989,1751271042473,-1224.9,0.00019289,2]
[368659991,1751271042483,-619.21,0.00019289,2]
[368659993,1751271042492,-324.37063994,0.00019289,2]
[368659995,1751271042503,-151.0,0.00019289,2]
[368659997,1751271042513,-460.0,0.00019289,2]
[368659999,1751271042523,-151.0,0.00019289,2]
[368660001,1751271042532,-151.0,0.00019289,2]
[368660003,1751271042542,-279.14863937,0.00019289,2]
[368660005,1751271042551,-460.0,0.00019289,2]
[368660007,1751271042561,-270.341912,0.00019289,2]
[368660009,1751271042570,-460.0,0.00019289,2]
[368660011,1751271042580,-1898.37,0.0001929,2]
[368660013,1751271042590,-524.75,0.0001929,2]
[368660015,1751271042599,-519.33,0.0001929,2]
[368660017,1751271042609,-787.09,0.0001929,2]
[368660019,1751271042619,-604.86,0.0001929,2]
[368660021,1751271042628,-460.0,0.0001929,2]
[368660023,1751271042638,-1068.38,0.0001929,2]
[368660025,1751271042647,-460.0,0.0001929,2]
[368660027,1751271042657,-761.17,0.0001929,2]
[368660029,1751271042666,-460.0,0.00019291,2]
[368660031,1751271042676,-151.0,0.00019291,2]
[368660033,1751271042685,-151.0,0.00019291,2]
[368660035,1751271042695,-288.295922,0.00019291,2]
[368660037,1751271042704,-151.0,0.00019291,2]
[368660039,1751271042713,-620.1,0.00019291,2]
[368660041,1751271042722,-1000.0,0.000193,2]
[368660043,1751271042731,-500.0,0.00019321,2]
[368660046,1751271042741,-500.0,0.00019321,2]
[368660047,1751271042750,-151.840684,0.00019327,2]
[368660050,1751271042759,-151.0,0.00019327,2]
[368660052,1751271042769,-151.0,0.00019327,2]
[368660053,1751271042778,-151.0,0.00019328,2]
[368660055,1751271042787,-151.0,0.00019328,2]
[368660058,1751271042796,-151.0,0.00019328,2]
[368660060,1751271042806,-151.0,0.00019328,2]
[368660062,1751271042815,-151.0,0.00019329,2]
[368660064,1751271042824,-151.0,0.00019329,2]
[368660066,1751271042833,-151.0,0.00019329,2]
[368660068,1751271042842,-151.0,0.00019329,2]
[368660070,1751271042852,-151.0,0.00019329,2]
[368660072,1751271042861,-151.639686,0.00019329,2]
[368660074,1751271042870,-151.0,0.00019329,2]
[368660076,1751271042879,-151.0,0.00019329,2]
[368660078,1751271042888,-151.0,0.00019329,2]
[368660080,1751271042898,-151.0,0.00019329,2]
[368660082,1751271042907,-151.0,0.00019329,2]
[368660084,1751271042916,-151.0,0.00019329,2]
[368660086,1751271042925,-151.0,0.00019329,2]
[368660088,1751271042934,-151.0,0.00019329,2]
[368660090,1751271042944,-151.0,0.00019329,2]
[368660092,1751271042953,-151.0,0.00019329,2]
[368660094,1751271042962,-219.027304,0.00019329,2]
[368660096,1751271042971,-251.066794,0.00019329,2]
[368660098,1751271042980,-326.750667,0.00019329,2]
[368660100,1751271042989,-251.066794,0.00019329,2]
[368660102,1751271042998,-151.0,0.00019329,2]
[368660104,1751271043007,-326.750667,0.00019329,2]
[368660106,1751271043016,-151.0,0.00019329,2]
[368660108,1751271043026,-151.0,0.00019329,2]
[368660110,1751271043035,-151.0,0.00019329,2]
[368660112,1751271043044,-151.585958,0.00019329,2]
[368660114,1751271043053,-151.585958,0.00019329,2]
[368660116,1751271043063,-151.0,0.00019329,2]
[368660118,1751271043072,-151.0,0.00019329,2]
[368660120,1751271043081,-151.0,0.00019329,2]
[368660122,1751271043090,-151.0,0.00019329,2]
[368660124,1751271043100,-151.0,0.00019329,2]
[368660126,1751271043109,-267.308168,0.00019329,2]
[368660128,1751271043119,-151.0,0.00019329,2]
[368660130,1751271043128,-151.442658,0.00019329,2]
[368660132,1751271043139,-151.0,0.00019329,2]
[368660134,1751271043148,-151.0,0.00019329,2]
[368660136,1751271043157,-151.0,0.00019329,2]
[368660138,1751271043166,-154.553503,0.00019329,2]
[368660140,1751271043176,-152.358025,0.00019329,2]
[368660142,1751271043185,-151.0,0.00019329,2]
[368660144,1751271043194,-151.0,0.00019329,2]
[368660146,1751271043203,-226.030852,0.00019329,2]
[368660148,1751271043213,-337.474726,0.00019329,2]
[368660150,1751271043223,-337.474726,0.00019329,2]
[368660152,1751271043232,-151.0,0.00019329,2]
[368660154,1751271043241,-227.770671,0.00019329,2]
[368660156,1751271043250,-100000.0,0.00019329,2]
[368660158,1751271043260,-537.20374534,0.00019373,2]
[368660160,1751271043270,-378.14361845,0.00019373,2]
[368660162,1751271043279,-500.0,0.00019373,2]
[368660164,1751271043289,-500.0,0.00019373,2]
[368660166,1751271043298,-151.0,0.00019385,2]
[368660168,1751271043308,-1427.8428487,0.0001943,2]
[368660170,1751271043317,-500.0,0.00019478,2]
[368660172,1751271043328,-500.0,0.00019478,2]
[368660174,1751271043338,-500.0,0.00019478,2]
[368660176,1751271043348,-446.0,0.0001948,2]
[368660178,1751271043357,-446.0,0.00019505,2]
[368660180,1751271043370,-177.3882618,0.00019534,2]
[368660182,1751271043380,-575.4102369,0.00019534,2]
[368660184,1751271043389,-159.319357,0.00019534,2]
[368660186,1751271043399,-575.4102369,0.00019534,2]
[368660188,1751271043408,-159.319357,0.00019534,2]
[368660190,1751271043417,-159.319357,0.00019534,2]
[368660192,1751271043428,-575.4102369,0.00019534,2]
[368660194,1751271043438,-159.319357,0.00019534,2]
[368660196,1751271043447,-575.4102369,0.00019534,2]
[368660198,1751271043456,-575.4102369,0.00019534,2]
[368660200,1751271043466,-159.319357,0.00019534,2]
[368660202,1751271043475,-1083.2205885,0.00019534,2]
[368660204,1751271043484,-400.292481,0.00019534,2]
[368660206,1751271043494,-1000.0,0.00019536,5]
[368660208,1751271043504,-460.0,0.00019562,2]
[368660210,1751271043513,-672.44,0.00019562,2]
[368660212,1751271043522,-460.0,0.00019563,2]
[368660214,1751271043532,-460.0,0.00019563,2]
[368660216,1751271043542,-4160.94,0.00019563,2]
[368660218,1751271043551,-460.0,0.00019563,2]
[368660220,1751271043561,-899.3721115,0.00019563,2]
[368660241,1751271043745,-272.67577278,0.00019417,2]
[368660244,1751271043853,-314.45031195,0.00019417,2]
[368660245,1751271043965,-177.5677436,0.000187,2]
[368660246,1751271043975,-159.319357,0.000187,2]
[368660247,1751271043985,-4226.75277469,0.00019417,2]
[368660248,1751271043995,-11.3978885,0.00019563,2]
[368660249,1751271044004,-1073.09,0.00019563,2]
[368660250,1751271044014,-460.0,0.00019563,2]
[368660251,1751271044023,-1134.74,0.00019563,2]
[368660252,1751271044032,-1048.56,0.00019563,2]
[368660253,1751271044042,-2018.03,0.00019563,2]
[368660254,1751271044052,-1368.35,0.00019563,2]
[368660255,1751271044061,-516.68,0.00019563,2]
[368660256,1751271044071,-1224.9,0.00019563,2]
[368660257,1751271044081,-619.21,0.00019563,2]
[368660258,1751271044090,-460.0,0.00019563,2]
[368660259,1751271044101,-460.0,0.00019563,2]
[368660260,1751271044110,-460.0,0.00019563,2]
[368660261,1751271044119,-1898.37,0.00019564,2]
[368660262,1751271044129,-524.75,0.00019564,2]
[368660263,1751271044139,-519.33,0.00019564,2]
[368660264,1751271044148,-787.09,0.00019564,2]
[368660265,1751271044157,-604.86,0.00019564,2]
[368660266,1751271044167,-460.0,0.00019564,2]
[368660267,1751271044176,-1068.38,0.00019564,2]
[368660268,1751271044185,-460.0,0.00019564,2]
[368660269,1751271044195,-761.17,0.00019564,2]
[368660270,1751271044204,-350.66559468,0.00019565,2]
[368660271,1751271044214,-620.1,0.00019565,2]
[368660272,1751271044224,-151.0,0.00019566,2]
[368660273,1751271044233,-4813.87885942,0.0001959,2]
[368660274,1751271044243,-500.0,0.0001959,2]
[368660275,1751271044252,-500.0,0.0001959,2]
[368660276,1751271044262,-267.450025,0.00019593,2]
[368660277,1751271044271,-151.0,0.00019593,2]
[368660278,1751271044281,-151.0,0.00019593,2]
[368660279,1751271044290,-446.0,0.00019741,2]
[368660280,1751271044300,-575.4102369,0.00019753,2]
[368660283,1751271044338,-151.0,0.00019761,2]
[368660285,1751271044347,-1882.21377712,0.00019762,2]
[368660287,1751271044359,-298.04696269,0.00019762,2]
[368660308,1751271066804,343.914333,0.00017196,2]
[368660309,1751271073205,-460.0,0.00018192,2]
[368660310,1751271073232,-60.67825905,0.00018192,2]
[368660311,1751271076860,-157.14764056,0.00018192,2]
[368660312,1751271128746,160.73810224,0.00017647,2]
[368660313,1751271305295,158.715596,0.00013699,2]
[368660315,1751271327452,-183.32674217,0.00018191,2]
[368660316,1751271403978,157.63520505,0.00018093,2]
[368660318,1751271449225,7219.45747001,0.00017706,2]
[368660319,1751271449248,10000.0,0.00017706,2]
[368660320,1751271449270,7680.54252999,0.00017706,2]
[368660321,1751271457615,280.5937092,0.00017848,2]
[368660322,1751271485528,2038.86376081,0.00017706,2]
[368660323,1751271485550,7961.13623919,0.00017706,2]
[368660324,1751271619559,157.63520505,0.00018093,2]
[368660337,1751272115647,1881.22855576,0.00017,2]
[368660338,1751272115669,10000.0,0.00017,2]
[368660339,1751272115691,10000.0,0.00017,2]
[368660340,1751272115713,3287.78328542,0.00017,2]
[368660364,1751272214992,171.957166,0.00017194,2]
[368660399,1751272232178,-300.0,0.00018189,2]
[368660401,1751272232188,-300.0,0.00018189,2]
[368660403,1751272232198,-300.0,0.00018189,2]
[368660405,1751272232207,-81.56283912,0.0001819,2]
[368660408,1751272232219,-1118.43716088,0.0001819,2]
[368660410,1751272232228,-1200.0,0.0001819,2]
[368660412,1751272232238,-181.56283912,0.00018191,2]
[368660415,1751272232247,-500.0,0.00018191,2]
[368660418,1751272232257,-520.67825905,0.00018191,2]
[368660420,1751272232266,-460.0,0.00018191,2]
[368660422,1751272232276,-986.35,0.00018191,2]
[368660424,1751272232285,-60.24150325,0.00018191,2]
[368660588,1751272240359,-399.75849675,0.00018191,2]
[368660589,1751272240370,-853.04,0.00018191,2]
[368660590,1751272240380,-460.0,0.00018191,2]
[368660591,1751272240390,-460.0,0.00018191,2]
[368660592,1751272240401,-989.98,0.00018191,2]
[368660593,1751272240412,-460.0,0.00018191,2]
[368660594,1751272240422,-460.0,0.00018191,2]
[368660595,1751272240432,-460.0,0.00018191,2]
[368660596,1751272240443,-460.0,0.00018191,2]
[368660597,1751272240453,-2272.80977405,0.00018191,2]
[368660638,1751272243121,-1550.68022595,0.00018191,2]
[368660639,1751272243131,-460.0,0.00018191,2]
[368660640,1751272243141,-460.0,0.00018191,2]
[368660641,1751272243150,-460.0,0.00018191,2]
[368660642,1751272243161,-1050.33,0.00018191,2]
[368660643,1751272243170,-912.35,0.00018191,2]
[368660644,1751272243179,-460.0,0.00018191,2]
[368660645,1751272243188,-1179.61,0.00018191,2]
[368660646,1751272243198,-460.0,0.00018191,2]
[368660647,1751272243207,-460.0,0.00018191,2]
[368660648,1751272243216,-460.0,0.00018191,2]
[368660649,1751272243226,-460.0,0.00018191,2]
[368660650,1751272243235,-460.0,0.00018191,2]
[368660651,1751272243244,-460.0,0.00018191,2]
[368660652,1751272243253,-460.0,0.00018191,2]
[368660653,1751272243263,-613.25,0.00018191,2]
[368660654,1751272243272,-511.0,0.00018191,2]
[368660655,1751272243282,-460.0,0.00018191,2]
[368660656,1751272243291,-443.2570482,0.00018191,2]
[368660657,1751272243300,-460.0,0.00018191,2]
[368660658,1751272243310,-460.0,0.00018191,2]
[368660659,1751272243320,-460.0,0.00018191,2]
[368660660,1751272243329,-460.0,0.00018191,2]
[368660661,1751272243338,-460.0,0.00018191,2]
[368660663,1751272243347,-460.0,0.00018191,2]
[368660664,1751272243356,-499.04,0.00018191,2]
[368660665,1751272243365,-521.75,0.00018191,2]
[368660667,1751272243375,-555.3,0.00018191,2]
[368660669,1751272243384,-460.0,0.00018192,2]
[368660671,1751272243393,-460.0,0.00018192,2]
[368660674,1751272243403,-460.0,0.00018192,2]
[368660676,1751272243412,-460.0,0.00018192,2]
[368660678,1751272243422,-460.58583264,0.00018192,2]
[368660680,1751272243431,-460.0,0.00018192,2]
[368660682,1751272243441,-460.0,0.00018192,2]
[368660684,1751272243450,-460.0,0.00018192,2]
[368660686,1751272243460,-430.97481887,0.00018192,2]
[368660688,1751272243469,-461.4347746,0.00018192,2]
[368660689,1751272243478,-460.0,0.00018192,2]
[368660691,1751272243488,-461.04767583,0.00018192,2]
[368660692,1751272243497,-461.2275398,0.00018192,2]
[368660694,1751272243507,-460.0,0.00018192,2]
[368660696,1751272243517,-460.0,0.00018192,2]
[368660698,1751272243527,-583.30651726,0.00018192,2]
[368660700,1751272243536,-460.0,0.00018192,2]
[368660702,1751272243546,-461.04875305,0.00018192,2]
[368660704,1751272243555,-460.0,0.00018192,2]
[368660706,1751272243565,-460.0,0.00018192,2]
[368660708,1751272243575,-433.132882,0.00018192,2]
[368660710,1751272243584,-460.0,0.00018192,2]
[368660712,1751272243594,-460.0,0.00018192,2]
[368660714,1751272243603,-460.0,0.00018192,2]
[368660716,1751272243613,-460.0,0.00018192,2]
[368660718,1751272243623,-461.77385037,0.00018192,2]
[368660721,1751272243632,-460.0,0.00018192,2]
[368660723,1751272243642,-462.10298002,0.00018192,2]
[368660725,1751272243651,-460.0,0.00018192,2]
[368660727,1751272243661,-460.0,0.00018192,2]
[368660729,1751272243671,-460.0,0.00018192,2]
[368660731,1751272243680,-460.0,0.00018192,2]
[368660733,1751272243690,-460.0,0.00018192,2]
[368660735,1751272243699,-460.0,0.00018192,2]
[368660737,1751272243708,-460.0,0.00018192,2]
[368660739,1751272243717,-460.0,0.00018192,2]
[368660741,1751272243727,-427.70169704,0.00018192,2]
[368660743,1751272243736,-460.0,0.00018192,2]
[368660745,1751272243745,-479.34165452,0.00018192,2]
[368660747,1751272243754,-460.71514591,0.00018192,2]
[368660749,1751272243763,-460.0,0.00018192,2]
[368660751,1751272243772,-460.0,0.00018192,2]
[368660753,1751272243781,-460.0,0.00018192,2]
[368660755,1751272243791,-239.90736306,0.00018192,2]
[368660757,1751272243802,-460.0,0.00018192,2]
[368660759,1751272243811,-460.0,0.00018192,2]
[368660761,1751272243820,-460.0,0.00018192,2]
[368660763,1751272243829,-460.0,0.00018192,2]
[368660765,1751272243839,-460.0,0.00018192,2]
[368660767,1751272243848,-460.0,0.00018192,2]
[368660769,1751272243857,-460.0,0.00018192,2]
[368660771,1751272243868,-460.0,0.00018192,2]
[368660773,1751272243878,-460.0,0.00018192,2]
[368660775,1751272243887,-460.51638563,0.00018192,2]
[368660777,1751272243896,-468.88390202,0.00018192,2]
[368660779,1751272243905,-460.0,0.00018192,2]
[368660781,1751272243915,-460.0,0.00018192,2]
[368660783,1751272243924,-460.0,0.00018192,2]
[368660785,1751272243933,-412.92930362,0.00018192,2]
[368660788,1751272243952,-47.07069638,0.00018192,2]
[368660790,1751272243961,-245.93106526,0.00018192,2]
[368660792,1751272243973,-8.50893474,0.00018192,2]
[368660794,1751272243982,-460.0,0.00018192,2]
[368660796,1751272243992,-460.0,0.00018192,2]
[368660798,1751272244001,-460.0,0.00018192,2]
[368660800,1751272244010,-561.63316843,0.00018192,2]
[368660802,1751272244019,-460.0,0.00018192,2]
[368660804,1751272244029,-460.0,0.00018192,2]
[368660806,1751272244038,-460.0,0.00018192,2]
[368660808,1751272244048,-460.0,0.00018192,2]
[368660810,1751272244058,-460.0,0.00018192,2]
[368660812,1751272244070,-460.0,0.00018192,2]
[368660814,1751272244081,-460.0,0.00018192,2]
[368660816,1751272244090,-460.0,0.00018192,2]
[368660819,1751272244101,-500.0,0.00018192,2]
[368660820,1751272244111,-460.0,0.00018192,2]
[368660822,1751272244120,-84.39947035,0.00018192,2]
[368661008,1751272246138,-460.0,0.00018191,2]
[368661010,1751272246149,-209.12835284,0.00018192,2]
[368661015,1751272246193,-166.47217681,0.00018192,2]
[368661017,1751272246202,-460.0,0.00018192,2]
[368661019,1751272246212,-460.0,0.00018192,2]
[368661021,1751272246221,-460.0,0.00018192,2]
[368661023,1751272246230,-460.0,0.00018192,2]
[368661025,1751272246240,-383.02756958,0.00018192,2]
[368661027,1751272246249,-460.0,0.00018192,2]
[368661030,1751272246258,-460.0,0.00018192,2]
[368661031,1751272246267,-460.0,0.00018192,2]
[368661034,1751272246276,-271.42337978,0.00018192,2]
[368661036,1751272246286,-1999.12,0.00018192,2]
[368661038,1751272246295,-487.43,0.00018192,2]
[368661040,1751272246304,-460.0,0.00018192,2]
[368661042,1751272246313,-158.91980488,0.00018192,2]
[368661044,1751272246325,-301.08019512,0.00018192,2]
[368661046,1751272246334,-492.46961548,0.00018192,2]
[368661048,1751272246343,-328.89810876,0.00018192,2]
[368661071,1751272416994,158.715596,0.00013699,2]
[368661073,1751272465501,6381.54395258,0.00017194,2]
[368661074,1751272465522,10000.0,0.00017194,2]
[368661075,1751272465543,8518.45604742,0.00017194,2]
[368661089,1751272671194,2000.0,0.00021918,60]
[368661090,1751272693705,323.53505769,0.00018031,2]
[368661091,1751272729318,163.0,0.000181,2]
[368661092,1751272730918,163.0,0.000181,2]
[368661093,1751272733332,163.0,0.000181,2]
[368661094,1751272748495,163.0,0.000181,3]
[368661095,1751272762020,165.0,0.000181,3]
[368661100,1751273152874,341.00889489,0.000181,2]
[368661101,1751273152896,558.99110511,0.000181,2]
[368661102,1751273230770,171.957167,0.00017192,2]
[368661110,1751273414673,209.603811,0.00013699,2]
[368661124,1751273432307,-922.0,0.00018188,2]
[368661127,1751273432318,-300.0,0.00018188,2]
[368661129,1751273432328,-270.0,0.00018188,2]
[368661132,1751273432337,-1200.0,0.00018188,2]
[368661134,1751273432347,-460.0,0.00018189,2]
[368661137,1751273432356,-500.0,0.00018189,2]
[368661139,1751273432365,-500.0,0.00018189,2]
[368661142,1751273432375,-604.82067394,0.00018189,2]
[368661145,1751273432384,-500.0,0.00018189,2]
[368661146,1751273432393,-460.0,0.00018189,2]
[368661148,1751273432402,-460.0,0.00018189,2]
[368661150,1751273432412,-889.32,0.00018189,2]
[368661152,1751273432422,-489.85744446,0.00018189,2]
[368661155,1751273432432,-855.62,0.00018189,2]
[368661157,1751273432441,-948.74,0.00018189,2]
[368661159,1751273432450,-460.0,0.00018189,2]
[368661161,1751273432459,-460.0,0.00018189,2]
[368661163,1751273432468,-460.0,0.00018189,2]
[368661165,1751273432478,-460.0,0.00018189,2]
[368661167,1751273432487,-460.0,0.00018189,2]
[368661169,1751273432497,-1094.04,0.00018189,2]
[368661171,1751273432507,-952.16,0.00018189,2]
[368661173,1751273432517,-750.0,0.00018189,2]
[368661174,1751273432526,-460.0,0.00018189,2]
[368661175,1751273432539,-1212.32,0.00018189,2]
[368661176,1751273432548,-378.40793921,0.00018189,2]
[368661177,1751273432558,-587.7,0.00018189,2]
[368661178,1751273432567,-460.0,0.00018189,2]
[368661179,1751273432576,-460.0,0.00018189,2]
[368661180,1751273432586,-460.0,0.00018189,2]
[368661181,1751273432596,-460.0,0.0001819,2]
[368661182,1751273432606,-460.0,0.0001819,2]
[368661183,1751273432615,-173.55992321,0.0001819,2]